[Event "GrandPrix_29.05"]
[Site "Chess.com"]
[Date "2020.05.29"]
[Round "5"]
[White "bedgasm"]
[Black "Sergey_Krivenko"]
[Result "1/2-1/2"]
[WhiteElo "2233"]
[BlackElo "2104"]
[TimeControl "600+2"]
[EndTime "11:33:39 PDT"]
[Termination "Game drawn by repetition"]

1. e4 {[%clk 0:09:47.5]} 1... e6 {[%clk 0:09:59.9]} 2. d4 {[%clk 0:09:45]} 2...
d5 {[%clk 0:10:00.3]} 3. Nc3 {[%clk 0:09:45]} 3... Bb4 {[%clk 0:09:58.5]} 4. e5
{[%clk 0:09:44.6]} 4... Ne7 {[%clk 0:09:57.9]} 5. a3 {[%clk 0:09:43.9]} 5...
Bxc3+ {[%clk 0:09:55.5]} 6. bxc3 {[%clk 0:09:45.8]} 6... b6 {[%clk 0:09:56.7]}
7. a4 {[%clk 0:09:42.4]} 7... Ba6 {[%clk 0:09:37]} 8. Bb5+ {[%clk 0:09:40]} 8...
Bxb5 {[%clk 0:09:23.2]} 9. axb5 {[%clk 0:09:41.9]} 9... Qd7 {[%clk 0:09:22.9]}
10. Qd3 {[%clk 0:09:39.1]} 10... c6 {[%clk 0:09:13.9]} 11. bxc6 {[%clk 0:09:31]}
11... Nbxc6 {[%clk 0:09:15.8]} 12. Ba3 {[%clk 0:09:31.2]} 12... Na5 {[%clk
0:08:58.4]} 13. Nf3 {[%clk 0:09:12.2]} 13... Nc4 {[%clk 0:08:48.1]} 14. O-O
{[%clk 0:09:07.6]} 14... Nxa3 {[%clk 0:08:20.7]} 15. Rxa3 {[%clk 0:09:09.5]}
15... Rc8 {[%clk 0:08:20.6]} 16. Ng5 {[%clk 0:07:47.8]} 16... h6 {[%clk
0:08:09.7]} 17. Nh3 {[%clk 0:07:19.5]} 17... Rc4 {[%clk 0:06:11.7]} 18. f4
{[%clk 0:07:03.3]} 18... O-O {[%clk 0:06:00.7]} 19. g4 {[%clk 0:07:03.2]} 19...
f5 {[%clk 0:03:29]} 20. g5 {[%clk 0:06:12.9]} 20... Rfc8 {[%clk 0:03:04]} 21.
Qg3 {[%clk 0:05:59.8]} 21... Kh8 {[%clk 0:02:43.1]} 22. Qh4 {[%clk 0:04:40.2]}
22... Ng8 {[%clk 0:02:25]} 23. Rf3 {[%clk 0:04:32.5]} 23... Qe7 {[%clk
0:02:16.3]} 24. Rb3 {[%clk 0:04:25.7]} 24... Ra4 {[%clk 0:01:58.3]} 25. Qh5
{[%clk 0:03:25.1]} 25... Qe8 {[%clk 0:01:33.5]} 26. Qh4 {[%clk 0:02:52.6]} 26...
Qe7 {[%clk 0:01:33.1]} 27. Qe1 {[%clk 0:02:39.6]} 27... Ra2 {[%clk 0:01:20.8]}
28. Qb1 {[%clk 0:02:02.1]} 28... Ra4 {[%clk 0:01:20.4]} 29. Qd1 {[%clk 0:01:55]}
29... Ra2 {[%clk 0:01:18.1]} 30. Rg3 {[%clk 0:01:51.2]} 30... Qf7 {[%clk
0:01:09.3]} 31. g6 {[%clk 0:01:49.4]} 31... Qd7 {[%clk 0:01:06.5]} 32. Ng5
{[%clk 0:01:46.7]} 32... Ne7 {[%clk 0:01:06.4]} 33. Nf7+ {[%clk 0:01:40.5]}
33... Kg8 {[%clk 0:01:06.7]} 34. Qh5 {[%clk 0:01:36.7]} 34... Nc6 {[%clk
0:00:30.6]} 35. Rh3 {[%clk 0:01:22.1]} 35... Rxc2 {[%clk 0:00:22.7]} 36. Nxh6+
{[%clk 0:01:07]} 36... gxh6 {[%clk 0:00:22.5]} 37. Qxh6 {[%clk 0:00:52.4]} 37...
Qg7 {[%clk 0:00:21]} 38. Qg5 {[%clk 0:00:50.6]} 38... Nxd4 {[%clk 0:00:17]} 39.
cxd4 {[%clk 0:00:45]} 39... Rc1+ {[%clk 0:00:15.9]} 40. Kf2 {[%clk 0:00:42.8]}
40... R1c2+ {[%clk 0:00:16.3]} 41. Kg3 {[%clk 0:00:40.7]} 41... R2c3+ {[%clk
0:00:16]} 42. Rxc3 {[%clk 0:00:36.4]} 42... Rxc3+ {[%clk 0:00:17.9]} 43. Kg2
{[%clk 0:00:34.3]} 43... Rc2+ {[%clk 0:00:17.8]} 44. Kf1 {[%clk 0:00:30.8]}
44... Qc7 {[%clk 0:00:16.3]} 45. Re3 {[%clk 0:00:25.5]} 45... Rb2 {[%clk
0:00:12.1]} 46. Re2 {[%clk 0:00:18.3]} 46... Rxe2 {[%clk 0:00:08.8]} 47. Kxe2
{[%clk 0:00:20.2]} 47... Qc2+ {[%clk 0:00:09.3]} 48. Kf3 {[%clk 0:00:17.5]}
48... Qd3+ {[%clk 0:00:10.4]} 49. Kg2 {[%clk 0:00:16.2]} 49... Qe2+ {[%clk
0:00:11.3]} 50. Kh3 {[%clk 0:00:15.9]} 50... Qf3+ {[%clk 0:00:11.4]} 51. Kh4
{[%clk 0:00:14.3]} 51... Qf2+ {[%clk 0:00:11.1]} 52. Kh3 {[%clk 0:00:12.1]}
52... Qf1+ {[%clk 0:00:11.1]} 53. Kh4 {[%clk 0:00:11]} 53... Qf2+ {[%clk
0:00:11.2]} 54. Kh3 {[%clk 0:00:06.8]} 54... Qf3+ {[%clk 0:00:12.1]} 55. Kh4
{[%clk 0:00:04.6]} 55... Qf2+ {[%clk 0:00:11]} 1/2-1/2

[Event "GrandPrix_29.05"]
[Site "Chess.com"]
[Date "2020.05.29"]
[Round "5"]
[White "swisspower96"]
[Black "komandoras123"]
[Result "1-0"]
[WhiteElo "2263"]
[BlackElo "2198"]
[TimeControl "600+2"]
[EndTime "11:33:40 PDT"]
[Termination "swisspower96 won on time"]

1. d4 {[%clk 0:10:01.9]} 1... f5 {[%clk 0:09:52.1]} 2. c4 {[%clk 0:10:01.9]}
2... Nf6 {[%clk 0:09:52.9]} 3. Nf3 {[%clk 0:10:03.2]} 3... g6 {[%clk 0:09:52.4]}
4. g3 {[%clk 0:10:04.5]} 4... Bg7 {[%clk 0:09:53.2]} 5. Bg2 {[%clk 0:10:06.3]}
5... O-O {[%clk 0:09:54.6]} 6. O-O {[%clk 0:10:07.9]} 6... d6 {[%clk 0:09:52.5]}
7. Nc3 {[%clk 0:10:08.7]} 7... Nc6 {[%clk 0:09:49.9]} 8. b3 {[%clk 0:09:31.3]}
8... e5 {[%clk 0:09:47.9]} 9. dxe5 {[%clk 0:09:32.2]} 9... Nxe5 {[%clk
0:09:24.9]} 10. Nxe5 {[%clk 0:09:30.5]} 10... dxe5 {[%clk 0:09:26.8]} 11. Ba3
{[%clk 0:09:29.5]} 11... Re8 {[%clk 0:09:05.1]} 12. Nb5 {[%clk 0:09:02.6]} 12...
c6 {[%clk 0:08:37.3]} 13. Nd6 {[%clk 0:08:34]} 13... Re6 {[%clk 0:08:27.6]} 14.
c5 {[%clk 0:08:27.2]} 14... e4 {[%clk 0:07:55.7]} 15. Qc2 {[%clk 0:08:22.9]}
15... Nd5 {[%clk 0:07:19.5]} 16. Rad1 {[%clk 0:08:19.2]} 16... Qa5 {[%clk
0:07:18.2]} 17. Nc4 {[%clk 0:08:02.1]} 17... Qa6 {[%clk 0:06:52.5]} 18. Bb2
{[%clk 0:07:20.3]} 18... Bxb2 {[%clk 0:04:14.2]} 19. Qxb2 {[%clk 0:07:20]} 19...
Qb5 {[%clk 0:04:15.1]} 20. Qd4 {[%clk 0:05:06.6]} 20... b6 {[%clk 0:04:14]} 21.
cxb6 {[%clk 0:05:06.5]} 21... axb6 {[%clk 0:04:14.3]} 22. Rd2 {[%clk 0:04:52.6]}
22... Bb7 {[%clk 0:03:54.4]} 23. Rfd1 {[%clk 0:03:47.9]} 23... Qb4 {[%clk
0:03:42.6]} 24. Qb2 {[%clk 0:03:26.1]} 24... Qe7 {[%clk 0:01:22.2]} 25. b4
{[%clk 0:02:26.5]} 25... Qf6 {[%clk 0:00:48.6]} 26. Qb3 {[%clk 0:02:17.6]} 26...
Ba6 {[%clk 0:00:19.9]} 27. e3 {[%clk 0:02:05.8]} 27... Qe7 {[%clk 0:00:11]} 28.
Bf1 {[%clk 0:01:58.1]} 28... Bb5 {[%clk 0:00:11.5]} 29. Nxb6 {[%clk 0:00:49.5]}
29... Nxb6 {[%clk 0:00:07.7]} 30. Rd6 {[%clk 0:00:45.3]} 30... Ba4 {[%clk
0:00:07.7]} 31. Qxe6+ {[%clk 0:00:31.4]} 31... Qxe6 {[%clk 0:00:08.6]} 32. Rxe6
{[%clk 0:00:33.3]} 32... Bxd1 {[%clk 0:00:09.8]} 33. Rxc6 {[%clk 0:00:35]} 33...
Rb8 {[%clk 0:00:09]} 34. Rc7 {[%clk 0:00:24.6]} 34... Ba4 {[%clk 0:00:06.8]} 35.
Ba6 {[%clk 0:00:23.1]} 35... Bd7 {[%clk 0:00:06.8]} 36. Bb7 {[%clk 0:00:20.8]}
36... Kf8 {[%clk 0:00:07]} 37. Bc6 {[%clk 0:00:12.5]} 37... Ke7 {[%clk
0:00:03.7]} 38. Bxd7 {[%clk 0:00:11.8]} 38... Nxd7 {[%clk 0:00:04.7]} 39. a3
{[%clk 0:00:13]} 39... Kd6 {[%clk 0:00:05.8]} 40. Rc4 {[%clk 0:00:13.1]} 40...
Ne5 {[%clk 0:00:05.7]} 41. Rc5 {[%clk 0:00:14.4]} 41... Nd3 {[%clk 0:00:05.4]}
42. Ra5 {[%clk 0:00:14.7]} 42... Rc8 {[%clk 0:00:06.1]} 43. Ra6+ {[%clk
0:00:12.4]} 43... Kd5 {[%clk 0:00:06.3]} 44. b5 {[%clk 0:00:13.8]} 44... Rc1+
{[%clk 0:00:06.6]} 45. Kg2 {[%clk 0:00:15.4]} 45... Rc2 {[%clk 0:00:08.3]} 46.
a4 {[%clk 0:00:16.5]} 46... Rxf2+ {[%clk 0:00:09.2]} 47. Kh3 {[%clk 0:00:17.6]}
47... Rb2 {[%clk 0:00:08.9]} 48. b6 {[%clk 0:00:18]} 48... h6 {[%clk 0:00:10]}
49. a5 {[%clk 0:00:18.4]} 49... Ne5 {[%clk 0:00:10]} 50. g4 {[%clk 0:00:12.2]}
50... fxg4+ {[%clk 0:00:09.6]} 51. Kg3 {[%clk 0:00:13.4]} 51... h5 {[%clk
0:00:08.7]} 52. Kf4 {[%clk 0:00:12.2]} 52... Nd3+ {[%clk 0:00:06.4]} 53. Kg5
{[%clk 0:00:13]} 53... Nc5 {[%clk 0:00:07.9]} 54. Ra7 {[%clk 0:00:14.2]} 54...
Rxh2 {[%clk 0:00:08.9]} 55. Kxg6 {[%clk 0:00:07.5]} 55... g3 {[%clk 0:00:09.1]}
56. Rg7 {[%clk 0:00:08.6]} 56... h4 {[%clk 0:00:07.5]} 57. Kh5 {[%clk
0:00:08.3]} 57... g2 {[%clk 0:00:05.4]} 58. b7 {[%clk 0:00:09.1]} 58... Nxb7
{[%clk 0:00:06]} 59. a6 {[%clk 0:00:10.6]} 59... Nc5 {[%clk 0:00:02.6]} 60. a7
{[%clk 0:00:12.1]} 60... g1=Q {[%clk 0:00:03.6]} 61. a8=Q+ {[%clk 0:00:12.7]}
61... Kc4 {[%clk 0:00:04.6]} 62. Rxg1 {[%clk 0:00:14.1]} 1-0

[Event "GrandPrix_29.05"]
[Site "Chess.com"]
[Date "2020.05.29"]
[Round "5"]
[White "MaxVavulin"]
[Black "rusuvlad95"]
[Result "1/2-1/2"]
[WhiteElo "2024"]
[BlackElo "2095"]
[TimeControl "600+2"]
[EndTime "11:33:42 PDT"]
[Termination "Game drawn - insufficient material"]

1. e4 {[%clk 0:10:01.9]} 1... e5 {[%clk 0:10:00.4]} 2. Nf3 {[%clk 0:09:54.3]}
2... Nc6 {[%clk 0:10:01.4]} 3. Bb5 {[%clk 0:09:54.1]} 3... Nf6 {[%clk
0:10:02.9]} 4. d3 {[%clk 0:09:54.1]} 4... Bc5 {[%clk 0:09:53.4]} 5. c3 {[%clk
0:09:52.5]} 5... d6 {[%clk 0:09:46.1]} 6. Bg5 {[%clk 0:09:48.4]} 6... h6 {[%clk
0:09:38.3]} 7. Bh4 {[%clk 0:09:49.1]} 7... Bg4 {[%clk 0:09:30.4]} 8. Nbd2 {[%clk
0:09:43.5]} 8... Bb6 {[%clk 0:09:26.5]} 9. Nc4 {[%clk 0:09:25.5]} 9... O-O
{[%clk 0:09:12]} 10. O-O {[%clk 0:09:12.3]} 10... g5 {[%clk 0:09:02.5]} 11. Bg3
{[%clk 0:09:12.6]} 11... Ne7 {[%clk 0:08:58.6]} 12. Nxb6 {[%clk 0:09:01.3]}
12... axb6 {[%clk 0:08:58]} 13. Re1 {[%clk 0:09:01.5]} 13... Ng6 {[%clk
0:08:38.4]} 14. d4 {[%clk 0:09:01.6]} 14... exd4 {[%clk 0:08:25.3]} 15. cxd4
{[%clk 0:08:52.1]} 15... c6 {[%clk 0:06:31.9]} 16. Bd3 {[%clk 0:08:42.2]} 16...
Nh5 {[%clk 0:06:31.3]} 17. h3 {[%clk 0:08:38.5]} 17... Bxf3 {[%clk 0:06:18.9]}
18. Qxf3 {[%clk 0:08:38.3]} 18... Nxg3 {[%clk 0:06:17.6]} 19. Qxg3 {[%clk
0:08:18.3]} 19... Nf4 {[%clk 0:06:07.5]} 20. Bf1 {[%clk 0:08:14.7]} 20... d5
{[%clk 0:05:58]} 21. e5 {[%clk 0:08:07.2]} 21... Ne6 {[%clk 0:05:49.5]} 22. Qe3
{[%clk 0:07:43.6]} 22... c5 {[%clk 0:05:45.4]} 23. dxc5 {[%clk 0:07:36.2]} 23...
bxc5 {[%clk 0:05:43.3]} 24. b3 {[%clk 0:07:30.1]} 24... b6 {[%clk 0:05:36.3]}
25. Bd3 {[%clk 0:07:10.6]} 25... Kg7 {[%clk 0:05:22.5]} 26. g3 {[%clk
0:06:59.1]} 26... Ra3 {[%clk 0:05:18.6]} 27. Kg2 {[%clk 0:06:29.6]} 27... c4
{[%clk 0:04:59.7]} 28. Bf5 {[%clk 0:06:25.3]} 28... Qa8 {[%clk 0:04:52.3]} 29.
Rab1 {[%clk 0:05:07.7]} 29... d4+ {[%clk 0:03:47.4]} 30. Qe4 {[%clk 0:02:51]}
30... c3 {[%clk 0:03:33.5]} 31. Qxa8 {[%clk 0:02:10.1]} 31... Rfxa8 {[%clk
0:03:32.6]} 32. Rbd1 {[%clk 0:02:05.4]} 32... Rd8 {[%clk 0:03:16.9]} 33. Bb1
{[%clk 0:01:38]} 33... Nc5 {[%clk 0:03:06.5]} 34. b4 {[%clk 0:01:38.5]} 34...
Na6 {[%clk 0:02:53.7]} 35. e6 {[%clk 0:01:13]} 35... fxe6 {[%clk 0:02:13.9]} 36.
Rxe6 {[%clk 0:01:14.5]} 36... Nxb4 {[%clk 0:02:15.1]} 37. Rg6+ {[%clk
0:00:15.3]} 37... Kf7 {[%clk 0:02:13.4]} 38. Rxb6 {[%clk 0:00:11.2]} 38... c2
{[%clk 0:02:13.4]} 39. Bxc2 {[%clk 0:00:12.1]} 39... Nxc2 {[%clk 0:02:13.7]} 40.
Rxh6 {[%clk 0:00:11.5]} 40... Rxa2 {[%clk 0:02:12.3]} 41. Rb1 {[%clk 0:00:11.9]}
41... Ne3+ {[%clk 0:01:36.5]} 42. Kf3 {[%clk 0:00:12.3]} 42... Nf5 {[%clk
0:01:33.3]} 43. Rb7+ {[%clk 0:00:12.5]} 43... Ne7 {[%clk 0:01:10.3]} 44. Rh7+
{[%clk 0:00:13]} 44... Kg6 {[%clk 0:01:05.3]} 45. Rhxe7 {[%clk 0:00:13.5]} 45...
Rf8+ {[%clk 0:01:02]} 46. Kg4 {[%clk 0:00:14.5]} 46... Raxf2 {[%clk 0:00:58.4]}
47. Rg7+ {[%clk 0:00:14.7]} 47... Kf6 {[%clk 0:00:57.7]} 48. Rxg5 {[%clk
0:00:14.7]} 48... d3 {[%clk 0:00:56.5]} 49. Rb6+ {[%clk 0:00:13.3]} 49... Ke7
{[%clk 0:00:57.7]} 50. Re5+ {[%clk 0:00:14.3]} 50... Kf7 {[%clk 0:00:58.2]} 51.
Rd5 {[%clk 0:00:09.2]} 51... Rg8+ {[%clk 0:00:56.2]} 52. Kh4 {[%clk 0:00:10.5]}
52... Rh8+ {[%clk 0:00:46.3]} 53. Kg5 {[%clk 0:00:11.3]} 53... Rg8+ {[%clk
0:00:47.1]} 54. Kh5 {[%clk 0:00:08.4]} 54... Rh8+ {[%clk 0:00:24.8]} 55. Rh6
{[%clk 0:00:08.7]} 55... Rxh6+ {[%clk 0:00:20.8]} 56. Kxh6 {[%clk 0:00:09.9]}
56... Rf3 {[%clk 0:00:22.4]} 57. g4 {[%clk 0:00:11]} 57... Rxh3+ {[%clk
0:00:22.9]} 58. Kg5 {[%clk 0:00:12.5]} 58... Ke6 {[%clk 0:00:21.5]} 59. Rd8
{[%clk 0:00:13.3]} 59... Ke5 {[%clk 0:00:20.7]} 60. Kg6 {[%clk 0:00:13.6]} 60...
Ke4 {[%clk 0:00:20.1]} 61. g5 {[%clk 0:00:14.5]} 61... Ke3 {[%clk 0:00:21.3]}
62. Kf7 {[%clk 0:00:12.7]} 62... d2 {[%clk 0:00:19.5]} 63. Rxd2 {[%clk
0:00:12.9]} 63... Kxd2 {[%clk 0:00:20.1]} 64. g6 {[%clk 0:00:14.2]} 64... Rg3
{[%clk 0:00:21.7]} 65. g7 {[%clk 0:00:15.3]} 65... Rxg7+ {[%clk 0:00:23.3]} 66.
Kxg7 {[%clk 0:00:16.4]} 1/2-1/2

[Event "GrandPrix_29.05"]
[Site "Chess.com"]
[Date "2020.05.29"]
[Round "5"]
[White "Iljin_Timofey"]
[Black "ploky25"]
[Result "1/2-1/2"]
[WhiteElo "2280"]
[BlackElo "2190"]
[TimeControl "600+2"]
[EndTime "11:33:49 PDT"]
[Termination "Game drawn by agreement"]

1. d4 {[%clk 0:09:46.6]} 1... Nf6 {[%clk 0:09:59.9]} 2. c4 {[%clk 0:09:47.5]}
2... e6 {[%clk 0:09:59.2]} 3. Nc3 {[%clk 0:09:48.5]} 3... Bb4 {[%clk 0:09:58.9]}
4. e3 {[%clk 0:09:49.5]} 4... O-O {[%clk 0:09:54]} 5. Bd3 {[%clk 0:09:50.3]}
5... c5 {[%clk 0:09:38.1]} 6. Ne2 {[%clk 0:09:50.6]} 6... d5 {[%clk 0:08:28.4]}
7. a3 {[%clk 0:09:46.7]} 7... Bxc3+ {[%clk 0:08:20.3]} 8. bxc3 {[%clk
0:09:47.2]} 8... dxc4 {[%clk 0:08:18]} 9. Bxc4 {[%clk 0:09:49.1]} 9... b6 {[%clk
0:08:11.9]} 10. O-O {[%clk 0:09:49.2]} 10... Qc7 {[%clk 0:07:58.8]} 11. Ba2
{[%clk 0:09:43.7]} 11... Ba6 {[%clk 0:07:47.3]} 12. Re1 {[%clk 0:09:44.6]} 12...
Nc6 {[%clk 0:07:41.8]} 13. Bb2 {[%clk 0:09:45.4]} 13... e5 {[%clk 0:07:12.9]}
14. d5 {[%clk 0:09:37.9]} 14... Na5 {[%clk 0:07:10.7]} 15. Ng3 {[%clk 0:09:28]}
15... Nc4 {[%clk 0:06:50.4]} 16. Bc1 {[%clk 0:08:13.2]} 16... Nd6 {[%clk
0:05:04.2]} 17. e4 {[%clk 0:08:09.2]} 17... g6 {[%clk 0:04:51.2]} 18. Bh6 {[%clk
0:08:02.4]} 18... Rfe8 {[%clk 0:04:51.8]} 19. f4 {[%clk 0:07:44]} 19... Bc4
{[%clk 0:04:08]} 20. fxe5 {[%clk 0:07:29.3]} 20... Rxe5 {[%clk 0:04:05.8]} 21.
Bf4 {[%clk 0:07:30.2]} 21... Rae8 {[%clk 0:03:48.4]} 22. Bxe5 {[%clk 0:07:19.6]}
22... Rxe5 {[%clk 0:03:48.4]} 23. Qf3 {[%clk 0:07:21.5]} 23... Qe7 {[%clk
0:03:39.2]} 24. Bxc4 {[%clk 0:06:42.6]} 24... Nxc4 {[%clk 0:03:38.9]} 25. Rf1
{[%clk 0:06:44.5]} 25... Nxe4 {[%clk 0:03:29.6]} 26. Nxe4 {[%clk 0:06:08.5]}
26... Rxe4 {[%clk 0:03:28.7]} 27. Qg3 {[%clk 0:05:48.8]} 27... Ne3 {[%clk
0:03:13.9]} 28. Qb8+ {[%clk 0:04:56.3]} 28... Kg7 {[%clk 0:03:12.6]} 29. d6
{[%clk 0:04:56.9]} 29... Qe5 {[%clk 0:01:42]} 30. Qxa7 {[%clk 0:03:07.9]} 30...
Nxf1 {[%clk 0:00:57.3]} 31. Rxf1 {[%clk 0:03:09.8]} 31... Qxd6 {[%clk
0:00:40.6]} 32. Rxf7+ {[%clk 0:02:37.1]} 32... Kh6 {[%clk 0:00:40.6]} 33. Rxh7+
{[%clk 0:02:32.2]} 33... Kg5 {[%clk 0:00:41.1]} 34. Qd7 {[%clk 0:02:04.5]} 34...
Qxd7 {[%clk 0:00:26.2]} 35. Rxd7 {[%clk 0:02:04.3]} 35... Ra4 {[%clk 0:00:26.1]}
36. Rd5+ {[%clk 0:01:54.4]} 36... Kh6 {[%clk 0:00:25.8]} 37. Rd6 {[%clk
0:01:49.3]} 37... Rxa3 {[%clk 0:00:26.4]} 38. Rxb6 {[%clk 0:01:49.4]} 38... Rxc3
{[%clk 0:00:26.9]} 39. Kf2 {[%clk 0:01:41.9]} 39... c4 {[%clk 0:00:25.5]} 40. h4
{[%clk 0:01:39.7]} 40... Kh5 {[%clk 0:00:25.6]} 41. g3 {[%clk 0:01:39]} 41...
Rd3 {[%clk 0:00:26.2]} 42. Kg2 {[%clk 0:01:27.2]} 42... c3 {[%clk 0:00:25.4]}
43. Kh3 {[%clk 0:01:21.8]} 43... Kh6 {[%clk 0:00:24.5]} 44. Rc6 {[%clk
0:01:19.6]} 44... Kg7 {[%clk 0:00:22.6]} 45. Kg4 {[%clk 0:01:18.8]} 45... Kf7
{[%clk 0:00:22.4]} 46. Kf4 {[%clk 0:01:16.8]} 46... Kg7 {[%clk 0:00:22.5]} 47.
Rc5 {[%clk 0:01:13.6]} 47... Kf6 {[%clk 0:00:21.7]} 48. g4 {[%clk 0:01:11]}
48... Rd4+ {[%clk 0:00:22]} 49. Kf3 {[%clk 0:01:12.1]} 49... Rd3+ {[%clk
0:00:19.3]} 50. Ke4 {[%clk 0:01:13.1]} 50... Rh3 {[%clk 0:00:18.3]} 51. Rc6+
{[%clk 0:01:11.3]} 51... Kf7 {[%clk 0:00:16.4]} 52. Ke5 {[%clk 0:00:55.5]} 52...
Rxh4 {[%clk 0:00:16.2]} 53. g5 {[%clk 0:00:45.3]} 53... Rh3 {[%clk 0:00:12.1]}
54. Rc7+ {[%clk 0:00:44.2]} 54... Ke8 {[%clk 0:00:11.6]} 55. Kf6 {[%clk
0:00:46.1]} 55... Kd8 {[%clk 0:00:10.2]} 56. Rc4 {[%clk 0:00:46.5]} 56... Kd7
{[%clk 0:00:11]} 57. Kxg6 {[%clk 0:00:48.4]} 57... Ke6 {[%clk 0:00:11.9]} 58.
Rc8 {[%clk 0:00:44.3]} 58... Kd5 {[%clk 0:00:12.4]} 59. Kf7 {[%clk 0:00:44.6]}
59... Kd4 {[%clk 0:00:13.2]} 60. g6 {[%clk 0:00:45.5]} 60... Rf3+ {[%clk
0:00:14]} 61. Ke6 {[%clk 0:00:45.1]} 61... Rg3 {[%clk 0:00:14.4]} 62. Kf6 {[%clk
0:00:45.4]} 62... Kd3 {[%clk 0:00:15.2]} 63. g7 {[%clk 0:00:45.9]} 63... c2
{[%clk 0:00:16.1]} 64. Rd8+ {[%clk 0:00:43.3]} 64... Kc3 {[%clk 0:00:16.6]} 65.
Rc8+ {[%clk 0:00:41.4]} 65... Kd2 {[%clk 0:00:17.3]} 66. Kf7 {[%clk 0:00:41.3]}
66... c1=Q {[%clk 0:00:17.7]} 67. Rxc1 {[%clk 0:00:40.9]} 67... Kxc1 {[%clk
0:00:18.4]} 68. Kf6 {[%clk 0:00:41]} 68... Rxg7 {[%clk 0:00:17.5]} 1/2-1/2

[Event "GrandPrix_29.05"]
[Site "Chess.com"]
[Date "2020.05.29"]
[Round "5"]
[White "Promacherr"]
[Black "madamDD"]
[Result "0-1"]
[WhiteElo "2171"]
[BlackElo "2382"]
[TimeControl "600+2"]
[EndTime "11:33:50 PDT"]
[Termination "madamDD won by checkmate"]

1. d4 {[%clk 0:10:01.9]} 1... Nf6 {[%clk 0:09:40.7]} 2. Nf3 {[%clk 0:09:56.9]}
2... b6 {[%clk 0:09:38.1]} 3. g3 {[%clk 0:09:46]} 3... Bb7 {[%clk 0:09:34.8]} 4.
Bg2 {[%clk 0:09:46.9]} 4... g6 {[%clk 0:09:34]} 5. O-O {[%clk 0:09:47.9]} 5...
Bg7 {[%clk 0:09:34.4]} 6. c4 {[%clk 0:09:42.9]} 6... O-O {[%clk 0:09:34.2]} 7.
Nc3 {[%clk 0:09:44]} 7... Ne4 {[%clk 0:09:34.2]} 8. Nxe4 {[%clk 0:09:22.1]} 8...
Bxe4 {[%clk 0:09:34.3]} 9. Bf4 {[%clk 0:09:23.4]} 9... d6 {[%clk 0:09:28.1]} 10.
Rc1 {[%clk 0:09:22.5]} 10... c5 {[%clk 0:09:22.3]} 11. Be3 {[%clk 0:08:32.5]}
11... Nd7 {[%clk 0:09:05.2]} 12. Qd2 {[%clk 0:08:29.9]} 12... Rc8 {[%clk
0:08:20.4]} 13. Rfd1 {[%clk 0:08:28.9]} 13... Nf6 {[%clk 0:07:40.1]} 14. Bh6
{[%clk 0:08:13.6]} 14... Qd7 {[%clk 0:07:08.7]} 15. d5 {[%clk 0:08:01.2]} 15...
b5 {[%clk 0:07:00.5]} 16. b3 {[%clk 0:07:48.8]} 16... bxc4 {[%clk 0:06:57.3]}
17. bxc4 {[%clk 0:07:50.7]} 17... Rb8 {[%clk 0:06:55.1]} 18. Bxg7 {[%clk
0:07:38]} 18... Kxg7 {[%clk 0:06:55.7]} 19. Qc3 {[%clk 0:07:37.3]} 19... Rb4
{[%clk 0:06:42.5]} 20. Ne1 {[%clk 0:07:35.8]} 20... Bxg2 {[%clk 0:06:13.7]} 21.
Kxg2 {[%clk 0:07:37.7]} 21... Qf5 {[%clk 0:06:01]} 22. f3 {[%clk 0:07:31.8]}
22... Rfb8 {[%clk 0:05:46.2]} 23. Nd3 {[%clk 0:07:31.6]} 23... R4b6 {[%clk
0:05:14.8]} 24. e4 {[%clk 0:06:12]} 24... Qd7 {[%clk 0:05:15.2]} 25. e5 {[%clk
0:06:02.9]} 25... dxe5 {[%clk 0:05:15.8]} 26. Qxe5 {[%clk 0:05:58.7]} 26... Qd6
{[%clk 0:05:05.8]} 27. Re1 {[%clk 0:05:34.9]} 27... R8b7 {[%clk 0:05:04]} 28.
Qc3 {[%clk 0:05:27]} 28... Kg8 {[%clk 0:04:49.2]} 29. Re2 {[%clk 0:05:24.7]}
29... Rb1 {[%clk 0:04:18.8]} 30. Rxb1 {[%clk 0:05:18.1]} 30... Rxb1 {[%clk
0:04:20.7]} 31. Qc2 {[%clk 0:05:00.3]} 31... Rb7 {[%clk 0:04:12]} 32. Qa4 {[%clk
0:05:00.8]} 32... Nd7 {[%clk 0:03:55.9]} 33. Qc6 {[%clk 0:04:47.9]} 33... Rc7
{[%clk 0:03:09.7]} 34. Qa8+ {[%clk 0:04:31.4]} 34... Kg7 {[%clk 0:03:07.3]} 35.
Qe8 {[%clk 0:04:24.3]} 35... Nf6 {[%clk 0:02:47.9]} 36. Qb8 {[%clk 0:04:23.7]}
36... e6 {[%clk 0:02:39.1]} 37. Nf4 {[%clk 0:03:55.7]} 37... exd5 {[%clk
0:02:38.4]} 38. cxd5 {[%clk 0:03:48.6]} 38... c4 {[%clk 0:02:32.8]} 39. Rc2
{[%clk 0:03:19.6]} 39... Qc5 {[%clk 0:01:59.2]} 40. Qb2 {[%clk 0:02:15]} 40...
c3 {[%clk 0:01:53.9]} 41. Qb3 {[%clk 0:02:15.8]} 41... g5 {[%clk 0:01:34.1]} 42.
d6 {[%clk 0:01:17.9]} 42... Qxd6 {[%clk 0:01:26.4]} 43. Ne2 {[%clk 0:01:17.7]}
43... Nd5 {[%clk 0:01:20.9]} 44. Rc1 {[%clk 0:01:02.9]} 44... Qe5 {[%clk
0:01:08.1]} 45. Kf1 {[%clk 0:00:59]} 45... c2 {[%clk 0:00:54.2]} 46. Kf2 {[%clk
0:00:51.4]} 46... Qf5 {[%clk 0:00:10.5]} 47. Qb2+ {[%clk 0:00:37.2]} 47... f6
{[%clk 0:00:10.2]} 48. Qb5 {[%clk 0:00:21.5]} 48... Qe5 {[%clk 0:00:10.2]} 49.
Qb3 {[%clk 0:00:19.7]} 49... Qf5 {[%clk 0:00:09]} 50. Qb5 {[%clk 0:00:20.1]}
50... Qe5 {[%clk 0:00:09.5]} 51. Qb3 {[%clk 0:00:21]} 51... h5 {[%clk
0:00:08.4]} 52. Qd3 {[%clk 0:00:15.2]} 52... Nb4 {[%clk 0:00:07.8]} 53. Qb3
{[%clk 0:00:12.2]} 53... Qc5+ {[%clk 0:00:08.5]} 54. Kg2 {[%clk 0:00:11.4]}
54... Qb5 {[%clk 0:00:08.9]} 55. Nd4 {[%clk 0:00:10.2]} 55... Qd3 {[%clk
0:00:08.7]} 56. Ne6+ {[%clk 0:00:10.8]} 56... Kg6 {[%clk 0:00:08.8]} 57. Nxc7
{[%clk 0:00:07.5]} 57... Qd2+ {[%clk 0:00:10]} 58. Kh3 {[%clk 0:00:08.3]} 58...
Qxc1 {[%clk 0:00:11.2]} 59. Qg8+ {[%clk 0:00:08.5]} 59... Kf5 {[%clk 0:00:12.5]}
60. Qe6+ {[%clk 0:00:09.1]} 60... Kg6 {[%clk 0:00:13.8]} 61. Qg8+ {[%clk
0:00:11]} 61... Kf5 {[%clk 0:00:15.3]} 62. Qe6+ {[%clk 0:00:08.3]} 62... Kg6
{[%clk 0:00:15.6]} 63. Qe4+ {[%clk 0:00:09.1]} 63... Kh6 {[%clk 0:00:15.5]} 64.
Qxb4 {[%clk 0:00:08.5]} 64... Qf1# {[%clk 0:00:16.5]} 0-1